fUST/lending_fUST_20250806
["ID","MTS","AMOUNT","RATE_DAILY","PERIOD"]
[377435142,1754411442053,-151.0,0.00028665,2]
[377435143,1754411442062,-151.0,0.00028665,2]
[377435144,1754411442073,-151.0,0.00028665,2]
[377435145,1754411442083,-151.0,0.00028665,2]
[377435146,1754411442092,-151.0,0.00028665,2]
[377435147,1754411442102,-151.0,0.00028665,2]
[377435148,1754411442112,-151.0,0.00028665,2]
[377435149,1754411442122,-500.0,0.00028753,9]
[377435150,1754411442131,-593.46063835,0.00028767,2]
[377435151,1754411442141,-240.80396486,0.00028767,2]
[377435152,1754411442150,-460.0,0.00028767,2]
[377435153,1754411442160,-530.27,0.00028767,2]
[377435154,1754411442169,-460.0,0.00028767,2]
[377435155,1754411442178,-187.91936622,0.00028767,2]
[377435156,1754411442188,-460.0,0.00028767,2]
[377435157,1754411442197,-615.04,0.00028767,2]
[377435158,1754411442207,-460.0,0.00028767,2]
[377435159,1754411442216,-460.0,0.00028767,2]
[377435160,1754411442226,-460.0,0.00028767,2]
[377435161,1754411442235,-742.5,0.00028767,2]
[377435162,1754411442245,-460.0,0.00028767,2]
[377435163,1754411442254,-1127.62,0.00028767,2]
[377435164,1754411442264,-460.0,0.00028767,2]
[377435165,1754411442274,-460.0,0.00028767,2]
[377435166,1754411442283,-460.0,0.00028767,2]
[377435167,1754411442296,-460.0,0.00028767,2]
[377435168,1754411442306,-644.97,0.00028767,2]
[377435169,1754411442316,-517.34,0.00028767,2]
[377435170,1754411442326,-460.0,0.00028767,2]
[377435171,1754411442335,-460.0,0.00028767,2]
[377435172,1754411442345,-1289.99,0.00028767,2]
[377435173,1754411442354,-895.92,0.00028767,2]
[377435174,1754411442364,-1048.28,0.00028767,2]
[377435175,1754411442374,-468.55650409,0.00028767,2]
[377435176,1754411442383,-982.86,0.00028767,2]
[377435177,1754411442393,-460.0,0.00028767,2]
[377435178,1754411442403,-460.0,0.00028767,2]
[377435179,1754411442412,-460.0,0.00028767,2]
[377435180,1754411442422,-908.91,0.00028767,2]
[377435181,1754411442431,-460.0,0.00028767,2]
[377435182,1754411442441,-460.0,0.00028767,2]
[377435183,1754411442450,-460.0,0.00028767,2]
[377435185,1754411442460,-460.0,0.00028767,2]
[377435186,1754411442470,-460.0,0.00028767,2]
[377435187,1754411442480,-460.0,0.00028767,2]
[377435188,1754411442489,-460.0,0.00028767,2]
[377435189,1754411442499,-567.92000006,0.00028767,2]
[377435190,1754411442508,-460.0,0.00028767,2]
[377435191,1754411442518,-460.0,0.00028767,2]
[377435192,1754411442527,-699.08,0.00028767,2]
[377435193,1754411442538,-1567.74,0.00028767,2]
[377435195,1754411442550,-460.0,0.00028767,2]
[377435196,1754411442559,-460.0,0.00028767,2]
[377435197,1754411442568,-460.0,0.00028767,2]
[377435198,1754411442577,-460.0,0.00028767,2]
[377435199,1754411442587,-65659.57,0.00028767,2]
[377435200,1754411442597,-460.0,0.00028767,2]
[377435201,1754411442607,-589.85,0.00028767,2]
[377435202,1754411442618,-2436.24,0.00028767,2]
[377435203,1754411442628,-655.24,0.00028767,2]
[377435204,1754411442637,-2169.57,0.00028767,2]
[377435205,1754411442647,-557.34,0.00028767,2]
[377435206,1754411442657,-460.0,0.00028767,2]
[377435207,1754411442667,-460.0,0.00028767,2]
[377435208,1754411442677,-662.12,0.00028767,2]
[377435209,1754411442687,-820.64368534,0.00028768,5]
[377435210,1754411442697,-260.0,0.00028807,2]
[377435211,1754411442707,-420.0,0.0002888,2]
[377435212,1754411442717,-2148.0,0.00028999,2]
[377435213,1754411442727,-971.0,0.00028999,2]
[377435214,1754411442737,-636.0,0.00028999,2]
[377435215,1754411442747,-554.592,0.00028999,2]
[377435216,1754411442756,-312.16666667,0.00029,10]
[377435217,1754411442766,-1680.0,0.00029008,2]
[377435218,1754411442777,-500.0,0.00029027,10]
[377435219,1754411442787,-1200.0,0.00029041,7]
[377435220,1754411442806,-460.0,0.00029041,2]
[377435221,1754411442816,-530.27,0.00029041,2]
[377435222,1754411442826,-460.0,0.00029041,2]
[377435223,1754411442836,-460.0,0.00029041,2]
[377435224,1754411442846,-615.04,0.00029041,2]
[377435225,1754411442856,-460.0,0.00029041,2]
[377435226,1754411442866,-460.0,0.00029041,2]
[377435227,1754411442875,-460.0,0.00029041,2]
[377435228,1754411442885,-742.5,0.00029041,2]
[377435229,1754411442895,-460.0,0.00029041,2]
[377435230,1754411442905,-1127.62,0.00029041,2]
[377435231,1754411442915,-460.0,0.00029041,2]
[377435232,1754411442925,-460.0,0.00029041,2]
[377435233,1754411442935,-460.0,0.00029041,2]
[377435234,1754411442944,-460.0,0.00029041,2]
[377435235,1754411442954,-644.97,0.00029041,2]
[377435236,1754411442963,-517.34,0.00029041,2]
[377435237,1754411442972,-560.02300601,0.00029041,2]
[377435238,1754411442982,-460.0,0.00029041,2]
[377435239,1754411442991,-1289.99,0.00029041,2]
[377435240,1754411443001,-895.92,0.00029041,2]
[377435241,1754411443011,-1048.28,0.00029041,2]
[377435242,1754411443020,-982.86,0.00029041,2]
[377435243,1754411443034,-460.0,0.00029041,2]
[377435244,1754411443049,-460.0,0.00029041,2]
[377435246,1754411443059,-460.0,0.00029041,2]
[377435248,1754411443069,-908.91,0.00029041,2]
[377435250,1754411443079,-460.0,0.00029041,2]
[377435251,1754411443088,-460.0,0.00029041,2]
[377435252,1754411443097,-460.0,0.00029041,2]
[377435253,1754411443107,-460.0,0.00029041,2]
[377435254,1754411443118,-460.0,0.00029041,2]
[377435255,1754411443128,-460.0,0.00029041,2]
[377435256,1754411443138,-460.0,0.00029041,2]
[377435257,1754411443148,-460.0,0.00029041,2]
[377435258,1754411443158,-460.0,0.00029041,2]
[377435259,1754411443167,-699.08,0.00029041,2]
[377435260,1754411443177,-1567.74,0.00029041,2]
[377435261,1754411443187,-460.0,0.00029041,2]
[377435262,1754411443196,-460.0,0.00029041,2]
[377435263,1754411443206,-460.0,0.00029041,2]
[377435265,1754411443215,-460.0,0.00029041,2]
[377435266,1754411443224,-65659.57,0.00029041,2]
[377435267,1754411443234,-460.0,0.00029041,2]
[377435268,1754411443243,-589.85,0.00029041,2]
[377435269,1754411443252,-2436.24,0.00029041,2]
[377435270,1754411443262,-655.24,0.00029041,2]
[377435271,1754411443271,-2169.57,0.00029041,2]
[377435272,1754411443281,-557.34,0.00029041,2]
[377435273,1754411443292,-460.0,0.00029041,2]
[377435274,1754411443302,-460.0,0.00029041,2]
[377435275,1754411443311,-662.12,0.00029041,2]
[377435276,1754411443321,-203.746048,0.00029134,2]
[377435277,1754411443330,-200.0,0.00029267,15]
[377435278,1754411443340,-300.0,0.00029267,15]
[377435279,1754411443349,-500.0,0.00029301,11]
[377435280,1754411443358,-460.0,0.00029315,2]
[377435281,1754411443368,-530.27,0.00029315,2]
[377435282,1754411443378,-178.30514132,0.00029315,2]
[377435283,1754411443387,-460.0,0.00029315,2]
[377435284,1754411443396,-615.04,0.00029315,2]
[377435285,1754411443405,-460.0,0.00029315,2]
[377435286,1754411443415,-460.0,0.00029315,2]
[377435287,1754411443425,-460.0,0.00029315,2]
[377435288,1754411443435,-742.5,0.00029315,2]
[377435289,1754411443446,-460.0,0.00029315,2]
[377435290,1754411443456,-1127.62,0.00029315,2]
[377435291,1754411443467,-460.0,0.00029315,2]
[377435292,1754411443478,-460.0,0.00029315,2]
[377435293,1754411443488,-460.0,0.00029315,2]
[377435294,1754411443498,-460.0,0.00029315,2]
[377435295,1754411443509,-644.97,0.00029315,2]
[377435296,1754411443519,-517.34,0.00029315,2]
[377435297,1754411443529,-460.0,0.00029315,2]
[377435298,1754411443540,-1289.99,0.00029315,2]
[377435299,1754411443557,-895.92,0.00029315,2]
[377435300,1754411443567,-1048.28,0.00029315,2]
[377435301,1754411443577,-982.86,0.00029315,2]
[377435302,1754411443588,-460.0,0.00029315,2]
[377435303,1754411443598,-460.0,0.00029315,2]
[377435304,1754411443609,-460.0,0.00029315,2]
[377435305,1754411443620,-908.91,0.00029315,2]
[377435306,1754411443631,-460.0,0.00029315,2]
[377435307,1754411443642,-460.0,0.00029315,2]
[377435308,1754411443653,-460.0,0.00029315,2]
[377435309,1754411443664,-460.0,0.00029315,2]
[377435310,1754411443674,-460.0,0.00029315,2]
[377435311,1754411443686,-460.0,0.00029315,2]
[377435312,1754411443697,-460.0,0.00029315,2]
[377435313,1754411443708,-526.12901827,0.00029315,2]
[377435314,1754411443719,-460.0,0.00029315,2]
[377435316,1754411443732,-699.08,0.00029315,2]
[377435318,1754411443745,-1567.74,0.00029315,2]
[377435319,1754411443756,-460.0,0.00029315,2]
[377435320,1754411443767,-460.0,0.00029315,2]
[377435321,1754411443777,-460.0,0.00029315,2]
[377435322,1754411443788,-460.0,0.00029315,2]
[377435323,1754411443813,-65659.57,0.00029315,2]
[377435324,1754411443823,-460.0,0.00029315,2]
[377435325,1754411443833,-589.85,0.00029315,2]
[377435326,1754411443844,-655.24,0.00029315,2]
[377435327,1754411443854,-2436.24,0.00029315,2]
[377435328,1754411443864,-2169.57,0.00029315,2]
[377435329,1754411443874,-557.34,0.00029315,2]
[377435330,1754411443883,-460.0,0.00029315,2]
[377435331,1754411443893,-460.0,0.00029315,2]
[377435332,1754411443902,-662.12,0.00029315,2]
[377435333,1754411443912,-360.0,0.00029355,2]
[377435334,1754411443922,-200.0,0.00029479,5]
[377435335,1754411443931,-8011.78667586,0.00029489,2]
[377435336,1754411443941,-508.11127853,0.0002949,5]
[377435337,1754411443951,-500.0,0.0002949,5]
[377435338,1754411443960,-500.0,0.0002949,5]
[377435339,1754411443970,-493.58569009,0.00029575,12]
[377435340,1754411443980,-460.0,0.00029589,2]
[377435341,1754411443990,-530.27,0.00029589,2]
[377435342,1754411444000,-460.0,0.00029589,2]
[377435343,1754411444010,-615.04,0.00029589,2]
[377435344,1754411444022,-460.0,0.00029589,2]
[377435345,1754411444032,-460.0,0.00029589,2]
[377435346,1754411444048,-460.0,0.00029589,2]
[377435347,1754411444058,-742.5,0.00029589,2]
[377435348,1754411444199,-460.0,0.00029589,2]
[377435349,1754411444208,-1127.62,0.00029589,2]
[377435350,1754411444218,-460.0,0.00029589,2]
[377435351,1754411444227,-460.0,0.00029589,2]
[377435352,1754411444237,-460.0,0.00029589,2]
[377435353,1754411444247,-460.0,0.00029589,2]
[377435354,1754411444257,-644.97,0.00029589,2]
[377435355,1754411444266,-517.34,0.00029589,2]
[377435356,1754411444276,-387.09,0.00029589,2]
[377435357,1754411444285,-1289.99,0.00029589,2]
[377435358,1754411444299,-895.92,0.00029589,2]
[377435359,1754411444309,-1048.28,0.00029589,2]
[377435360,1754411444319,-982.86,0.00029589,2]
[377435361,1754411444328,-460.0,0.00029589,2]
[377435362,1754411444338,-460.0,0.00029589,2]
[377435363,1754411444347,-460.0,0.00029589,2]
[377435364,1754411444356,-908.91,0.00029589,2]
[377435365,1754411444366,-460.0,0.00029589,2]
[377435366,1754411444375,-460.0,0.00029589,2]
[377435367,1754411444384,-460.0,0.00029589,2]
[377435368,1754411444394,-460.0,0.00029589,2]
[377435369,1754411444403,-460.0,0.00029589,2]
[377435370,1754411444412,-460.0,0.00029589,2]
[377435371,1754411444422,-460.0,0.00029589,2]
[377435372,1754411444431,-460.0,0.00029589,2]
[377435373,1754411444440,-699.08,0.00029589,2]
[377435374,1754411444449,-1567.74,0.00029589,2]
[377435375,1754411444459,-460.0,0.00029589,2]
[377435376,1754411444468,-460.0,0.00029589,2]
[377435377,1754411444478,-460.0,0.00029589,2]
[377435378,1754411444487,-460.0,0.00029589,2]
[377435379,1754411444496,-65659.57,0.00029589,2]
[377435380,1754411444506,-460.0,0.00029589,2]
[377435381,1754411444515,-589.85,0.00029589,2]
[377435382,1754411444525,-655.24,0.00029589,2]
[377435383,1754411444534,-2436.24,0.00029589,2]
[377435384,1754411444549,-2169.57,0.00029589,2]
[377435385,1754411444559,-557.34,0.00029589,2]
[377435386,1754411444568,-460.0,0.00029589,2]
[377435387,1754411444578,-460.0,0.00029589,2]
[377435388,1754411444587,-500.0,0.0002969,5]
[377435389,1754411444597,-306.0,0.00029699,30]
[377435390,1754411444608,-1200.0,0.00029863,7]
[377435391,1754411444618,-460.0,0.00029863,2]
[377435392,1754411444627,-530.27,0.00029863,2]
[377435393,1754411444637,-460.0,0.00029863,2]
[377435394,1754411444646,-615.04,0.00029863,2]
[377435395,1754411444656,-460.0,0.00029863,2]
[377435396,1754411444666,-460.0,0.00029863,2]
[377435397,1754411444676,-460.0,0.00029863,2]
[377435398,1754411444686,-742.5,0.00029863,2]
[377435399,1754411444695,-460.0,0.00029863,2]
[377435400,1754411444705,-1127.62,0.00029863,2]
[377435401,1754411444714,-460.0,0.00029863,2]
[377435402,1754411444724,-460.0,0.00029863,2]
[377435403,1754411444734,-460.0,0.00029863,2]
[377435404,1754411444743,-460.0,0.00029863,2]
[377435405,1754411444753,-644.97,0.00029863,2]
[377435406,1754411444762,-517.34,0.00029863,2]
[377435407,1754411444772,-1289.99,0.00029863,2]
[377435408,1754411444782,-895.92,0.00029863,2]
[377435409,1754411444794,-1048.28,0.00029863,2]
[377435410,1754411444804,-982.86,0.00029863,2]
[377435411,1754411444814,-571.4,0.00029863,2]
[377435412,1754411444824,-460.0,0.00029863,2]
[377435413,1754411444834,-460.0,0.00029863,2]
[377435414,1754411444843,-908.91,0.00029863,2]
[377435415,1754411444853,-460.0,0.00029863,2]
[377435416,1754411444862,-460.0,0.00029863,2]
[377435417,1754411444872,-460.0,0.00029863,2]
[377435418,1754411444881,-460.0,0.00029863,2]
[377435419,1754411444890,-460.0,0.00029863,2]
[377435420,1754411444900,-460.0,0.00029863,2]
[377435421,1754411444909,-460.0,0.00029863,2]
[377435422,1754411444918,-460.0,0.00029863,2]
[377435423,1754411444928,-699.08,0.00029863,2]
[377435424,1754411444937,-1567.74,0.00029863,2]
[377435425,1754411444946,-456.39086155,0.00029863,2]
[377435426,1754411444956,-460.0,0.00029863,2]
[377435427,1754411444965,-460.0,0.00029863,2]
[377435428,1754411444975,-460.0,0.00029863,2]
[377435429,1754411444984,-65659.57,0.00029863,2]
[377435430,1754411444993,-460.0,0.00029863,2]
[377435431,1754411445003,-589.85,0.00029863,2]
[377435432,1754411445015,-655.24,0.00029863,2]
[377435433,1754411445026,-2436.24,0.00029863,2]
[377435434,1754411445041,-2169.57,0.00029863,2]
[377435435,1754411445054,-557.34,0.00029863,2]
[377435436,1754411445063,-460.0,0.00029863,2]
[377435437,1754411445073,-460.0,0.00029863,2]
[377435438,1754411445082,-622.7,0.00029882,7]
[377435439,1754411445092,-201.050211,0.0002989,20]
[377435440,1754411445103,-158.687297,0.0002989,20]
[377435441,1754411445112,-500.0,0.0002989,5]
[377435442,1754411445123,-460.0,0.00029902,2]
[377435443,1754411445134,-158.687297,0.00029988,5]
[377435444,1754411445144,-1006.13,0.0003,2]
[377435445,1754411445154,-1000.0,0.0003,2]
[377435446,1754411445164,-1000.0,0.0003,2]
[377435447,1754411445174,-1000.0,0.0003,2]
[377435448,1754411445183,-1000.0,0.0003,2]
[377435449,1754411445193,-100004.26158883,0.0003,30]
[377435450,1754411445203,-160.0,0.0003,30]
[377435451,1754411445212,-527.3554621,0.0003,30]
[377435452,1754411445222,-1500.0,0.0003,3]
[377435453,1754411445231,-842.25606042,0.0003,30]
[377435454,1754411445241,-312.16666667,0.0003,30]
[377435455,1754411445251,-4000.0,0.0003,4]
[377435456,1754411445260,-23009.51934145,0.00030034,2]
[377435457,1754411445269,-578.9513623,0.0003006,30]
[377435458,1754411445278,-153.0,0.0003006,30]
[377435459,1754411445287,-414.1206365,0.0003006,30]
[377435460,1754411445301,-153.0,0.0003006,30]
[377435461,1754411445311,-153.0,0.0003006,30]
[377435462,1754411445320,-153.0,0.0003006,30]
[377435463,1754411445330,-306.0,0.0003006,30]
[377435464,1754411445339,-292.9155566,0.0003006,30]
[377435465,1754411445349,-153.0,0.0003006,30]
[377435466,1754411445358,-292.9155566,0.0003006,30]
[377435467,1754411445368,-153.0,0.0003006,30]
[377435468,1754411445377,-153.0,0.0003006,30]
[377435469,1754411445386,-292.9155566,0.0003006,30]
[377435471,1754411445396,-153.0,0.0003006,30]
[377435473,1754411445405,-153.0,0.0003006,30]
[377435474,1754411445415,-153.0,0.0003006,30]
[377435475,1754411445425,-153.0,0.0003006,30]
[377435476,1754411445435,-10177.92685651,0.0003013,2]
[377435477,1754411445444,-65941.74377936,0.0003013,5]
[377435478,1754411445455,-460.0,0.00030136,2]
[377435479,1754411445466,-530.27,0.00030136,2]
[377435480,1754411445476,-460.0,0.00030136,2]
[377435481,1754411445487,-615.04,0.00030136,2]
[377435482,1754411445497,-460.0,0.00030136,2]
[377435483,1754411445506,-460.0,0.00030136,2]
[377435484,1754411445516,-460.0,0.00030136,2]
[377435485,1754411445525,-742.5,0.00030136,2]
[377435486,1754411445536,-540.67,0.00030136,2]
[377435487,1754411445548,-1127.62,0.00030136,2]
[377435488,1754411445557,-460.0,0.00030136,2]
[377435489,1754411445567,-460.0,0.00030136,2]
[377435490,1754411445576,-460.0,0.00030136,2]
[377435491,1754411445586,-460.0,0.00030136,2]
[377435492,1754411445595,-644.97,0.00030136,2]
[377435493,1754411445605,-517.34,0.00030136,2]
[377435494,1754411445615,-1289.99,0.00030136,2]
[377435495,1754411445625,-895.92,0.00030136,2]
[377435496,1754411445634,-1048.28,0.00030136,2]
[377435497,1754411445644,-982.86,0.00030136,2]
[377435498,1754411445653,-380.12290859,0.00030136,2]
[377435499,1754411445664,-460.0,0.00030136,2]
[377435500,1754411445673,-908.91,0.00030136,2]
[377435501,1754411445683,-460.0,0.00030136,2]
[377435502,1754411445692,-303.05204432,0.00030136,2]
[377435503,1754411445701,-460.0,0.00030136,2]
[377435504,1754411445712,-460.0,0.00030136,2]
[377435505,1754411445722,-460.0,0.00030136,2]
[377435506,1754411445732,-460.0,0.00030136,2]
[377435507,1754411445742,-500.0,0.00030136,2]
[377435508,1754411445752,-500.0,0.00030136,2]
[377435509,1754411445761,-500.0,0.00030136,2]
[377435510,1754411445771,-460.0,0.00030136,2]
[377435511,1754411445780,-500.0,0.00030136,2]
[377435512,1754411445792,-151.61367767,0.00030136,7]
[377435513,1754411445803,-326.56220013,0.00030136,2]
[377435514,1754411445812,-699.08,0.00030136,2]
[377435515,1754411445824,-1567.74,0.00030136,2]
[377435516,1754411445836,-460.0,0.00030136,2]
[377435517,1754411445845,-460.0,0.00030136,2]
[377435518,1754411445855,-460.0,0.00030136,2]
[377435519,1754411445870,-65659.57,0.00030136,2]
[377435520,1754411445888,-460.0,0.00030136,2]
[377435521,1754411445899,-589.85,0.00030136,2]
[377435522,1754411445908,-655.24,0.00030136,2]
[377435523,1754411445917,-2436.24,0.00030136,2]
[377435524,1754411445927,-2169.57,0.00030136,2]
[377435525,1754411445937,-151.0,0.00030136,7]
[377435526,1754411445947,-557.34,0.00030136,2]
[377435527,1754411445956,-460.0,0.00030136,2]
[377435528,1754411445965,-460.0,0.00030136,2]
[377435529,1754411445975,-54614.5168398,0.00030137,2]
[377435530,1754411445986,-151.0,0.00030172,7]
[377435531,1754411445995,-3334.23833473,0.00030178,2]
[377435532,1754411446005,-7651.39270167,0.00030178,2]
[377435533,1754411446015,-6945.73648219,0.00030178,2]
[377435534,1754411446027,-184.25228695,0.00030178,2]
[377435535,1754411446037,-151.0,0.00030207,7]
[377435536,1754411446055,-800.0,0.00030217,2]
[377435537,1754411446064,-800.0,0.00030226,2]
[377435538,1754411446074,-151.0,0.00030243,7]
[377435539,1754411446084,-800.0,0.00030258,2]
[377435540,1754411446093,-874.23881095,0.00030262,2]
[377435541,1754411446104,-800.0,0.00030269,2]
[377435542,1754411446113,-800.0,0.0003027,2]
[377435543,1754411446123,-151.0,0.00030278,7]
[377435544,1754411446132,-800.0,0.00030289,2]
[377435545,1754411446141,-800.0,0.00030305,2]
[377435546,1754411446151,-735.16940006,0.00030311,26]
[377435547,1754411446160,-151.0,0.00030314,7]
[377435548,1754411446170,-800.0,0.00030318,2]
[377435549,1754411446179,-800.0,0.00030324,2]
[377435550,1754411446189,-151.0,0.0003035,7]
[377435551,1754411446198,-800.0,0.0003035,2]
[377435552,1754411446207,-760.39630456,0.00030359,2]
[377435553,1754411446217,-800.0,0.00030372,2]
[377435554,1754411446226,-800.0,0.00030378,2]
[377435555,1754411446235,-151.0,0.00030385,7]
[377435556,1754411446245,-800.0,0.00030386,2]
[377435557,1754411446254,-800.0,0.00030391,2]
[377435558,1754411446264,-800.0,0.00030393,2]
[377435559,1754411446274,-738886.419128,0.000304,4]
[377435560,1754411446366,-312.16361392,0.000304,4]
[377435564,1754411446607,-409.69,0.00026697,10]
[377435565,1754411446617,-151.0,0.00028665,2]
[377435566,1754411446627,-662.12,0.00029589,2]
[377435567,1754411446636,-662.12,0.00029863,2]
[377435568,1754411446646,-662.12,0.00030136,2]
[377435569,1754411446654,-1037.95,0.000304,4]
[377435570,1754411447332,-301.53775025,0.00027397,2]
[377435571,1754411447344,-158.46224975,0.00027397,2]
[377435572,1754411447354,-460.0,0.00027671,2]
[377435573,1754411447364,-460.0,0.00027945,2]
[377435574,1754411447374,-460.0,0.00028219,2]
[377435575,1754411447383,-109.82,0.0003,3]
[377435749,1754411506839,203.746048,0.00025922,2]
[377435826,1754412040085,216.189365,0.00013699,2]
[377435827,1754412040511,216.189365,0.00020187,2]
[377435829,1754412055113,3986.67306476,0.00026577,2]
[377435830,1754412059224,2337.51324974,0.00026498,2]
[377435835,1754412118361,1044.68939088,0.00026576,2]
[377435839,1754412179959,192.12186416,0.00026488,2]
[377435840,1754412184150,549.20627777,0.00026573,2]
[377435841,1754412184602,243.04398856,0.00026573,2]
[377435844,1754412212994,192.08564484,0.00026498,2]
[377435845,1754412213833,192.12186415,0.00026488,2]
[377435849,1754412278088,6874.53101157,0.00025593,2]
[377435850,1754412278113,18025.46898843,0.00025593,2]
[377435853,1754412293618,1974.53101157,0.0002657,2]
[377435854,1754412293641,20000.0,0.0002657,2]
[377435855,1754412293666,20000.0,0.0002657,2]
[377435856,1754412293689,20000.0,0.0002657,2]
[377435857,1754412293711,20000.0,0.0002657,2]
[377435858,1754412293735,20000.0,0.0002657,2]
[377435859,1754412293761,20000.0,0.0002657,2]
[377435860,1754412293784,20000.0,0.0002657,2]
[377435861,1754412293806,20000.0,0.0002657,2]
[377435862,1754412293827,20000.0,0.0002657,2]
[377435863,1754412293848,20000.0,0.0002657,2]
[377435864,1754412293870,20000.0,0.0002657,2]
[377435865,1754412293893,20000.0,0.0002657,2]
[377435866,1754412293914,20000.0,0.0002657,2]
[377435867,1754412293936,20000.0,0.0002657,2]
[377435868,1754412293958,20000.0,0.0002657,2]
[377435869,1754412293979,20000.0,0.0002657,2]
[377435870,1754412294001,20000.0,0.0002657,2]
[377435871,1754412294023,20000.0,0.0002657,2]
[377435872,1754412294045,20000.0,0.0002657,2]
[377435873,1754412294067,20000.0,0.0002657,2]
[377435874,1754412294088,20000.0,0.0002657,2]
[377435875,1754412294109,20000.0,0.0002657,2]
[377435876,1754412294131,20000.0,0.0002657,2]
[377435877,1754412294152,20000.0,0.0002657,2]
[377435878,1754412294175,20000.0,0.0002657,2]
[377435879,1754412294196,20000.0,0.0002657,2]
[377435880,1754412294217,20000.0,0.0002657,2]
[377435881,1754412294238,20000.0,0.0002657,2]
[377435882,1754412294263,20000.0,0.0002657,2]
[377435883,1754412294287,20000.0,0.0002657,2]
[377435884,1754412294311,20000.0,0.0002657,2]
[377435885,1754412294333,20000.0,0.0002657,2]
[377435886,1754412294357,20000.0,0.0002657,2]
[377435887,1754412294378,20000.0,0.0002657,2]
[377435888,1754412294407,1918036.07354765,0.0002657,2]
[377435891,1754412339541,921.46832933,0.00026575,30]
[377435892,1754412340879,215.85310535,0.00025205,30]
[377435894,1754412348769,2045.32409354,0.00026495,2]
[377435895,1754412351416,3735.67288897,0.00026576,2]
[377435897,1754412379927,174.74,0.0002657,7]
[377435898,1754412408679,696.45959392,0.00026498,2]
[377435899,1754412423849,500.0,0.00026573,2]
[377435900,1754412423884,500.0,0.00026573,2]
[377435901,1754412423926,1080.21654923,0.00026487,2]
[377435903,1754412451032,511.319,0.00030448,120]
[377435904,1754412453153,155.32,0.00026487,7]
[377435906,1754412463190,201.36431304,0.0003,120]
[377435907,1754412463927,2867.33491525,0.00025983,2]
[377435908,1754412464638,-199.96757757,0.00025983,2]
[377435909,1754412467342,-412.8356251,0.00025983,2]
[377435910,1754412474330,-323.30350422,0.00025983,2]
[377435911,1754412476696,-280.01720415,0.00025983,2]
[377435912,1754412478798,-359.94257162,0.00025983,2]
[377435914,1754412481555,-273.02121535,0.00025983,2]
[377435915,1754412483744,-171.29568507,0.00025983,2]
[377435916,1754412485188,-98.11170167,0.00025983,2]
[377435917,1754412492685,-210.5211904,0.00025593,2]
[377435918,1754412495593,-35.0558516,0.00025593,2]
[377435919,1754412505149,1022.88312297,0.0002447,2]
[377435921,1754412508092,201.36431304,0.0003,120]
[377435922,1754412516440,-201.30342958,0.0002599,2]
[377435923,1754412518548,-305.08767993,0.0002599,2]
[377435924,1754412520065,-189.35763739,0.0002599,2]
[377435925,1754412523009,-307.62,0.0002599,2]
[377435926,1754412525555,-460.0,0.0002599,2]